lending/lending_fUSD_20240721
["ID","MTS","AMOUNT","RATE_DAILY","PERIOD"]
[332797857,1721531447257,-500.0,0.00022359,2]
[332797859,1721531447267,-500.0,0.00022359,2]
[332797861,1721531447276,-500.0,0.00022359,2]
[332797863,1721531447286,-500.0,0.00022359,2]
[332797865,1721531447295,-500.0,0.00022359,2]
[332797867,1721531447305,-500.0,0.00022359,2]
[332797869,1721531447315,-500.0,0.00022359,2]
[332797871,1721531447325,-500.0,0.00022359,2]
[332797873,1721531447334,-500.0,0.00022359,2]
[332797875,1721531447343,-500.0,0.00022359,2]
[332797877,1721531447353,-500.0,0.00022359,2]
[332797879,1721531447363,-500.0,0.00022359,2]
[332797881,1721531447372,-500.0,0.00022359,2]
[332797883,1721531447381,-500.0,0.00022359,2]
[332797930,1721531447826,-500.0,0.00022359,2]
[332797932,1721531447837,-500.0,0.00022359,2]
[332797934,1721531447848,-500.0,0.00022359,2]
[332797936,1721531447858,-409.33597349,0.00022359,2]
[332797938,1721531447870,-90.66402651,0.00022359,2]
[332797941,1721531447880,-274.33597349,0.00022359,2]
[332797943,1721531447893,-225.66402651,0.00022359,2]
[332797945,1721531447903,-500.0,0.00022359,2]
[332797947,1721531447916,-500.0,0.00022359,2]
[332797949,1721531447927,-500.0,0.00022359,2]
[332797951,1721531447937,-500.0,0.00022359,2]
[332797953,1721531447947,-500.0,0.00022359,2]
[332797955,1721531447956,-500.0,0.00022359,2]
[332797957,1721531447966,-65.89028958,0.00022359,2]
[332797959,1721531447978,-261.4769987,0.00022359,2]
[332797961,1721531447990,-172.63271172,0.00022359,2]
[332797963,1721531447999,-500.0,0.00022359,2]
[332797965,1721531448009,-500.0,0.00022359,2]
[332797967,1721531448018,-27.62380322,0.00022359,2]
[332797969,1721531448030,-472.37619678,0.00022359,2]
[332797971,1721531448039,-350.59850552,0.00022359,2]
[332798062,1721531449000,-3590.50884215,0.00016263,2]
[332798064,1721531449012,-376.247532,0.00020548,2]
[332798066,1721531449023,-149.40149448,0.00022359,2]
[332798068,1721531449034,-500.0,0.00022359,2]
[332798070,1721531449045,-500.0,0.00022359,2]
[332798072,1721531449056,-500.0,0.00022359,2]
[332798074,1721531449066,-332.55321999,0.00022359,2]
[332798077,1721531449079,-167.44678001,0.00022359,2]
[332798079,1721531449090,-353.94636593,0.00022359,2]
[332798081,1721531449103,-146.05363407,0.00022359,2]
[332798083,1721531449116,-500.0,0.00022359,2]
[332798085,1721531449126,-500.0,0.00022359,2]
[332798087,1721531449138,-500.0,0.00022359,2]
[332798089,1721531449149,-420.44989794,0.00022359,2]
[332798091,1721531449162,-79.55010206,0.00022359,2]
[332798093,1721531449172,-500.0,0.00022359,2]
[332798095,1721531449182,-62.67073127,0.00022359,2]
[332798097,1721531449194,-437.32926873,0.00022359,2]
[332798099,1721531449204,-500.0,0.00022359,2]
[332798101,1721531449215,-500.0,0.00022359,2]
[332798103,1721531449225,-500.0,0.00022359,2]
[332798105,1721531449235,-500.0,0.00022359,2]
[332798107,1721531449246,-500.0,0.00022359,2]
[332798109,1721531449257,-500.0,0.00022359,2]
[332798110,1721531449267,-500.0,0.00022359,2]
[332798112,1721531449277,-500.0,0.00022359,2]
[332798114,1721531449287,-500.0,0.00022359,2]
[332798116,1721531449297,-500.0,0.00022359,2]
[332798118,1721531449308,-500.0,0.00022359,2]
[332798120,1721531449319,-500.0,0.00022359,2]
[332798122,1721531449330,-500.0,0.00022359,2]
[332798125,1721531449341,-500.0,0.00022359,2]
[332798127,1721531449351,-500.0,0.00022359,2]
[332798129,1721531449363,-500.0,0.00022359,2]
[332798131,1721531449374,-500.0,0.00022359,2]
[332798133,1721531449385,-500.0,0.00022359,2]
[332798135,1721531449395,-500.0,0.00022359,2]
[332798137,1721531449406,-500.0,0.00022359,2]
[332798139,1721531449417,-500.0,0.00022359,2]
[332798141,1721531449427,-500.0,0.00022359,2]
[332798143,1721531449438,-500.0,0.00022359,2]
[332798145,1721531449449,-500.0,0.00022359,2]
[332798147,1721531449461,-500.0,0.00022359,2]
[332798149,1721531449472,-500.0,0.00022359,2]
[332798152,1721531449484,-500.0,0.00022359,2]
[332798154,1721531449494,-500.0,0.00022359,2]
[332798156,1721531449506,-500.0,0.00022359,2]
[332798158,1721531449517,-500.0,0.00022359,2]
[332798160,1721531449527,-500.0,0.00022359,2]
[332798162,1721531449538,-500.0,0.00022359,2]
[332798164,1721531449550,-500.0,0.00022359,2]
[332798166,1721531449561,-500.0,0.00022359,2]
[332798168,1721531449572,-500.0,0.00022359,2]
[332798170,1721531449583,-500.0,0.00022359,2]
[332798172,1721531449594,-500.0,0.00022359,2]
[332798174,1721531449605,-500.0,0.00022359,2]
[332798176,1721531449615,-500.0,0.00022359,2]
[332798178,1721531449626,-500.0,0.00022359,2]
[332798180,1721531449636,-500.0,0.00022359,2]
[332798182,1721531449647,-500.0,0.00022359,2]
[332798184,1721531449658,-500.0,0.00022359,2]
[332798186,1721531449668,-500.0,0.00022359,2]
[332798188,1721531449679,-500.0,0.00022359,2]
[332798190,1721531449690,-500.0,0.00022359,2]
[332798192,1721531449700,-500.0,0.00022359,2]
[332798194,1721531449712,-500.0,0.00022359,2]
[332798196,1721531449724,-500.0,0.00022359,2]
[332798198,1721531449735,-500.0,0.00022359,2]
[332798200,1721531449746,-500.0,0.00022359,2]
[332798202,1721531449758,-500.0,0.00022359,2]
[332798204,1721531449768,-500.0,0.00022359,2]
[332798206,1721531449779,-500.0,0.00022359,2]
[332798208,1721531449789,-500.0,0.00022359,2]
[332798210,1721531449800,-500.0,0.00022359,2]
[332798213,1721531449810,-500.0,0.00022359,2]
[332798215,1721531449820,-500.0,0.00022359,2]
[332798217,1721531449831,-500.0,0.00022359,2]
[332798219,1721531449841,-500.0,0.00022359,2]
[332798221,1721531449851,-500.0,0.00022359,2]
[332798223,1721531449861,-500.0,0.00022359,2]
[332798225,1721531449872,-500.0,0.00022359,2]
[332798227,1721531449882,-500.0,0.00022359,2]
[332798229,1721531449892,-500.0,0.00022359,2]
[332798231,1721531449903,-500.0,0.00022359,2]
[332798233,1721531449914,-500.0,0.00022359,2]
[332798235,1721531449924,-500.0,0.00022359,2]
[332798237,1721531449934,-500.0,0.00022359,2]
[332798239,1721531449944,-500.0,0.00022359,2]
[332798241,1721531449954,-500.0,0.00022359,2]
[332798243,1721531449966,-500.0,0.00022359,2]
[332798245,1721531449976,-500.0,0.00022359,2]
[332798247,1721531449986,-500.0,0.00022359,2]
[332798249,1721531449996,-500.0,0.00022359,2]
[332798251,1721531450006,-500.0,0.00022359,2]
[332798253,1721531450016,-500.0,0.00022359,2]
[332798255,1721531450025,-500.0,0.00022359,2]
[332798257,1721531450036,-500.0,0.00022359,2]
[332798259,1721531450049,-500.0,0.00022359,2]
[332798261,1721531450059,-500.0,0.00022359,2]
[332798263,1721531450069,-500.0,0.00022359,2]
[332798265,1721531450079,-500.0,0.00022359,2]
[332798267,1721531450089,-500.0,0.00022359,2]
[332798269,1721531450099,-500.0,0.00022359,2]
[332798271,1721531450109,-500.0,0.00022359,2]
[332798273,1721531450120,-500.0,0.00022359,2]
[332798275,1721531450129,-500.0,0.00022359,2]
[332798277,1721531450139,-500.0,0.00022359,2]
[332798280,1721531450150,-500.0,0.00022359,2]
[332798281,1721531450160,-500.0,0.00022359,2]
[332798284,1721531450170,-500.0,0.00022359,2]
[332798286,1721531450180,-500.0,0.00022359,2]
[332798288,1721531450189,-500.0,0.00022359,2]
[332798290,1721531450199,-500.0,0.00022359,2]
[332798292,1721531450209,-500.0,0.00022359,2]
[332798294,1721531450220,-500.0,0.00022359,2]
[332798296,1721531450230,-500.0,0.00022359,2]
[332798309,1721531450345,-500.0,0.00022359,2]
[332798311,1721531450357,-500.0,0.00022359,2]
[332798313,1721531450366,-500.0,0.00022359,2]
[332798315,1721531450376,-500.0,0.00022359,2]
[332798317,1721531450385,-422.87625839,0.00022359,2]
[332798379,1721531451032,-77.12374161,0.00022359,2]
[332798381,1721531451041,-500.0,0.00022359,2]
[332798383,1721531451051,-500.0,0.00022359,2]
[332798385,1721531451060,-500.0,0.00022359,2]
[332798387,1721531451070,-500.0,0.00022359,2]
[332798388,1721531451080,-500.0,0.00022359,2]
[332798390,1721531451089,-293.91034929,0.00022359,2]
[332798392,1721531451101,-206.08965071,0.00022359,2]
[332798394,1721531451110,-500.0,0.00022359,2]
[332798396,1721531451120,-243.56034929,0.00022359,2]
[332798398,1721531451131,-256.43965071,0.00022359,2]
[332798400,1721531451141,-500.0,0.00022359,2]
[332798402,1721531451151,-500.0,0.00022359,2]
[332798404,1721531451160,-500.0,0.00022359,2]
[332798406,1721531451170,-500.0,0.00022359,2]
[332798408,1721531451179,-500.0,0.00022359,2]
[332798410,1721531451188,-500.0,0.00022359,2]
[332798412,1721531451199,-500.0,0.00022359,2]
[332798414,1721531451209,-500.0,0.00022359,2]
[332798416,1721531451221,-500.0,0.00022359,2]
[332798418,1721531451231,-500.0,0.00022359,2]
[332798420,1721531451241,-500.0,0.00022359,2]
[332798422,1721531451252,-500.0,0.00022359,2]
[332798424,1721531451261,-500.0,0.00022359,2]
[332798426,1721531451271,-500.0,0.00022359,2]
[332798427,1721531451280,-500.0,0.00022359,2]
[332798429,1721531451289,-500.0,0.00022359,2]
[332798431,1721531451298,-500.0,0.00022359,2]
[332798433,1721531451308,-500.0,0.00022359,2]
[332798435,1721531451318,-500.0,0.00022359,2]
[332798437,1721531451327,-500.0,0.00022359,2]
[332798439,1721531451337,-500.0,0.00022359,2]
[332798440,1721531451346,-500.0,0.00022359,2]
[332798442,1721531451355,-500.0,0.00022359,2]
[332798444,1721531451365,-500.0,0.00022359,2]
[332798446,1721531451374,-500.0,0.00022359,2]
[332798448,1721531451383,-500.0,0.00022359,2]
[332798450,1721531451393,-500.0,0.00022359,2]
[332798452,1721531451402,-500.0,0.00022359,2]
[332798454,1721531451411,-500.0,0.00022359,2]
[332798456,1721531451421,-500.0,0.00022359,2]
[332798458,1721531451430,-500.0,0.00022359,2]
[332798460,1721531451439,-500.0,0.00022359,2]
[332798462,1721531451449,-500.0,0.00022359,2]
[332798464,1721531451459,-500.0,0.00022359,2]
[332798466,1721531451471,-500.0,0.00022359,2]
[332798468,1721531451481,-151.0,0.00022359,7]
[332798470,1721531451490,-151.0,0.00022359,7]
[332798472,1721531451500,-151.0,0.00022359,7]
[332798474,1721531451509,-151.0,0.00022359,7]
[332798476,1721531451518,-151.0,0.00022359,7]
[332798478,1721531451527,-151.0,0.00022359,7]
[332798480,1721531451536,-152.402058,0.00022359,7]
[332798482,1721531451545,-500.0,0.00022359,2]
[332798484,1721531451554,-500.0,0.00022359,2]
[332798485,1721531451563,-500.0,0.00022359,2]
[332798487,1721531451572,-500.0,0.00022359,2]
[332798489,1721531451581,-500.0,0.00022359,2]
[332798491,1721531451591,-500.0,0.00022359,2]
[332798493,1721531451600,-500.0,0.00022359,2]
[332798495,1721531451611,-500.0,0.00022359,2]
[332798497,1721531451619,-500.0,0.00022359,2]
[332798499,1721531451630,-500.0,0.00022359,2]
[332798501,1721531451641,-500.0,0.00022359,2]
[332798503,1721531451651,-500.0,0.00022359,2]
[332798505,1721531451663,-500.0,0.00022359,2]
[332798507,1721531451672,-500.0,0.00022359,2]
[332798509,1721531451681,-500.0,0.00022359,2]
[332798511,1721531451691,-500.0,0.00022359,2]
[332798513,1721531451700,-500.0,0.00022359,2]
[332798515,1721531451710,-500.0,0.00022359,2]
[332798517,1721531451721,-500.0,0.00022359,2]
[332798519,1721531451730,-500.0,0.00022359,2]
[332798521,1721531451740,-500.0,0.00022359,2]
[332798523,1721531451752,-500.0,0.00022359,2]
[332798525,1721531451761,-500.0,0.00022359,2]
[332798527,1721531451771,-500.0,0.00022359,2]
[332798529,1721531451780,-500.0,0.00022359,2]
[332798531,1721531451790,-500.0,0.00022359,2]
[332798533,1721531451799,-500.0,0.00022359,2]
[332798535,1721531451808,-500.0,0.00022359,2]
[332798537,1721531451817,-500.0,0.00022359,2]
[332798539,1721531451826,-500.0,0.00022359,2]
[332798541,1721531451835,-500.0,0.00022359,2]
[332798543,1721531451845,-500.0,0.00022359,2]
[332798545,1721531451854,-500.0,0.00022359,2]
[332798546,1721531451863,-500.0,0.00022359,2]
[332798548,1721531451872,-500.0,0.00022359,2]
[332798550,1721531451883,-500.0,0.00022359,2]
[332798552,1721531451893,-500.0,0.00022359,2]
[332798554,1721531451902,-500.0,0.00022359,2]
[332798556,1721531451914,-500.0,0.00022359,2]
[332798558,1721531451925,-500.0,0.00022359,2]
[332798560,1721531451935,-154.376635,0.00022359,7]
[332798562,1721531451944,-153.538911,0.00022359,7]
[332798564,1721531451954,-153.926738,0.00022359,7]
[332798566,1721531451963,-151.0,0.00022359,7]
[332798568,1721531451972,-151.0,0.00022359,7]
[332798570,1721531451981,-203.193536,0.00022359,7]
[332798572,1721531451991,-151.0,0.00022359,7]
[332798574,1721531452001,-151.0,0.00022359,7]
[332798576,1721531452010,-161.146416,0.00022359,7]
[332798578,1721531452020,-151.0,0.00022359,7]
[332798580,1721531452029,-151.0,0.00022359,7]
[332798582,1721531452038,-152.300245,0.000224,7]
[332798583,1721531452047,-151.0,0.000224,7]
[332798585,1721531452056,-152.191681,0.000224,7]
[332798587,1721531452065,-152.839691,0.000224,7]
[332798589,1721531452074,-151.0,0.000224,7]
[332798591,1721531452085,-151.0,0.000224,7]
[332798593,1721531452094,-151.0,0.000224,7]
[332798595,1721531452104,-151.0,0.000224,7]
[332798597,1721531452113,-151.40807,0.000224,2]
[332798599,1721531452122,-153.982294,0.000224,7]
[332798601,1721531452132,-151.0,0.000224,7]
[332798603,1721531452142,-175.067544,0.000224,7]
[332798605,1721531452151,-100.87699615,0.000224,7]
[332798607,1721531452163,-50.12300385,0.000224,7]
[332798609,1721531452172,-170.691287,0.000224,7]
[332798611,1721531452182,-6525.92570915,0.00022433,2]
[332798615,1721531452204,-727.97026371,0.00022433,2]
[332798617,1721531452216,-8436.19617597,0.00022433,2]
[332798619,1721531452225,-3604.84910707,0.00022433,2]
[332798621,1721531452234,-150.0,0.00022495,2]
[332798623,1721531452244,-208.1,0.00022497,2]
[332798625,1721531452253,-151.36587027,0.0002252,2]
[332798627,1721531452262,-154.23770085,0.00022558,2]
[332798629,1721531452271,-152.37,0.00022603,2]
[332798631,1721531452280,-150.75,0.00022712,2]
[332798633,1721531452290,-155.31471181,0.00022847,2]
[332798635,1721531452299,-371.09118349,0.00022847,2]
[332798637,1721531452308,-306.23140596,0.00022954,2]
[332798639,1721531452319,-4813.76859404,0.00022954,2]
[332798641,1721531452328,-1668.0,0.00022954,2]
[332798643,1721531452338,-5826.0,0.00022954,2]
[332798644,1721531452347,-1201.0,0.00022954,2]
[332798646,1721531452356,-38345.0,0.00022954,2]
[332798648,1721531452365,-200.0,0.0002298,2]
[332798650,1721531452374,-717.905463,0.00022992,2]
[332798652,1721531452384,-6305.92506813,0.00023,2]
[332798654,1721531452395,-1317.75877493,0.00023,2]
[332798655,1721531452404,-350.0,0.00023,2]
[332798656,1721531452413,-93.09122505,0.00023015,7]
[332798657,1721531452425,-58.90877495,0.00023015,7]
[332798658,1721531452434,-164.29,0.00023059,2]
[332798659,1721531452443,-126.80122005,0.00023071,2]
[332798660,1721531452618,-376.247532,0.0002137,2]
[332798661,1721531452627,-23.19877995,0.00023071,2]
[332798662,1721531452636,-180.0,0.00023205,2]
[332798663,1721531452646,-168.77360553,0.00023554,2]
[332798664,1721531452655,-1929.05097264,0.00023555,2]
[332798665,1721531452665,-213.0,0.000236,2]
[332798666,1721531452676,-253.62348193,0.00023626,2]
[332798667,1721531452686,-150.0,0.00023648,2]
[332798668,1721531452696,-2919.85339201,0.00023667,2]
[332798669,1721531452709,-264.208,0.00023667,2]
[332798670,1721531452720,-2127.56997144,0.00023667,2]
[332798671,1721531452731,-565.134902,0.00023667,2]
[332798672,1721531452745,-8259.64506002,0.00023667,2]
[332798673,1721531452756,-1553.68082336,0.00023667,2]
[332798674,1721531452766,-3604.84910707,0.00023667,2]
[332798675,1721531452775,-152.0,0.00023839,8]
[332798676,1721531452785,-166.66666666,0.00023852,2]
[332798677,1721531452794,-1090.71185,0.0002386,2]
[332798678,1721531452803,-248.32,0.0002399,2]
[332798679,1721531452813,-620.0,0.0002399,2]
[332798680,1721531452822,-445.0,0.0002399,2]
[332798681,1721531452831,-2382.0,0.0002399,2]
[332798682,1721531452841,-550.0,0.0002399,2]
[332798683,1721531452851,-150.0,0.0002399,2]
[332798684,1721531452860,-1994.0,0.0002399,2]
[332798685,1721531452870,-3282.0,0.0002399,2]
[332798686,1721531452880,-201.17793809,0.00024,4]
[332798687,1721531452889,-411.15361482,0.00024,5]
[332798688,1721531452901,-315.86816959,0.00024,5]
[332798689,1721531452911,-143.58271991,0.00024,2]
[332798690,1721531452927,-356.41728009,0.00024,2]
[332798691,1721531452937,-75.63538273,0.00024,2]
[332798692,1721531452949,-424.36461727,0.00024,2]
[332798693,1721531452960,-507.42,0.00024,2]
[332798694,1721531452970,-500.0,0.00024,2]
[332798695,1721531452979,-508.13,0.00024,2]
[332798696,1721531452990,-418.85,0.00024055,2]
[332798697,1721531452999,-208.1,0.00024098,2]
[332798698,1721531453008,-200.0,0.0002414,2]
[332798699,1721531453018,-590.4,0.00024159,2]
[332798700,1721531453027,-150.0,0.00024225,2]
[332798701,1721531453037,-307.52,0.00024228,2]
[332798702,1721531453046,-253.62348193,0.00024248,2]
[332798703,1721531453055,-151.36587027,0.0002426,2]
[332798704,1721531453065,-253.62348193,0.00024443,2]
[332798705,1721531453076,-2800.0,0.000245,8]
[332798706,1721531453086,-253.62348193,0.00024516,2]
[332798707,1721531453107,-198.2177457,0.00024555,2]
[332798708,1721531453118,-1608.90120369,0.000246,8]
[332798709,1721531453131,-1891.09879631,0.000246,8]
[332798710,1721531453141,-212.86740078,0.00024655,3]
[332798711,1721531453153,-4803.45941549,0.00024655,3]
[332798712,1721531453165,-5322.75488516,0.00024655,3]
[332798713,1721531453177,-988.36394822,0.00024655,3]
[332798714,1721531453188,-418.37649362,0.00024655,3]
[332798732,1721531887362,5173.25424198,0.00011959,2]
[332798733,1721532009361,4482.60073653,0.00011959,2]
[332798735,1721532328706,7003.17368105,0.000118,2]
[332798736,1721532334919,227.50846371,0.00011959,2]
[332798737,1721532343660,655.18215697,0.00011959,2]
[332798738,1721532345171,236.59956835,0.00011959,2]
[332798739,1721532368218,212.8864155,0.00011959,2]
[332798741,1721532391445,164.092104,0.00011959,2]
[332798742,1721532392466,155.0,0.00011959,2]
[332798743,1721532397596,299.70571837,0.00011959,2]
[332798744,1721532406191,264.09660197,0.00011959,2]
[332798745,1721532406328,155.26574275,0.00011959,2]
[332798746,1721532406973,157.86250875,0.00011959,2]
[332798747,1721532407496,441.6408204,0.00011959,2]
[332798748,1721532409007,197.8445188,0.00011959,2]
[332798751,1721532438650,291.71813567,0.00011959,2]
[332798752,1721532446902,1800.0,0.000138,5]
[332798753,1721532449169,3600.0,0.000139,5]
[332798754,1721532450115,155.95688004,0.00011959,2]
[332798761,1721532577083,271.55,0.00011497,2]
[332798770,1721532632484,-207.0,0.00012259,2]
[332798771,1721532632494,-2230.14912999,0.0001251,2]
[332798772,1721532632505,-1548.80494481,0.0001251,2]
[332798773,1721532632515,-3494.9254399,0.00013,2]
[332798774,1721532632524,-1418.60140405,0.0001358,2]
[332798775,1721532632535,-385.70680431,0.00013691,2]
[332798776,1721532632546,-614.29319569,0.00013691,2]
[332798777,1721532632556,-271.55,0.00013761,2]
[332798778,1721532632566,-500.0,0.000138,2]
[332798779,1721532632575,-4422.76151631,0.0001386,2]
[332798780,1721532632588,-778.63384695,0.0001386,2]
[332798781,1721532632599,-1371.8136814,0.0001386,2]
[332798782,1721532632611,-2570.79095534,0.0001386,2]
[332798783,1721532632620,-437.36712027,0.00013889,2]
[332798784,1721532632629,-182.58795269,0.00013892,2]
[332798785,1721532632639,-155.28146934,0.00013896,2]
[332798786,1721532632648,-804.62205165,0.000139,2]
[332798787,1721532632659,-3401.1581367,0.000139,2]
[332798788,1721532632670,-3294.21981165,0.000139,2]
[332798789,1721532632680,-2500.0,0.000139,2]
[332798790,1721532632690,-155.77430832,0.00013979,2]
[332798791,1721532632699,-346.74261503,0.00013979,2]
[332798792,1721532632708,-362.67035901,0.0001398,2]
[332798793,1721532632720,-4738.13408063,0.0001398,2]
[332798794,1721532632729,-1323.92221372,0.00013986,2]
[332798795,1721532632739,-150.0,0.00013989,2]
[332798796,1721532632749,-33760.96666061,0.0001399,3]
[332798797,1721532632805,-3065.99360389,0.0001399,3]
[332798798,1721532632818,-621.77146932,0.0001399,3]
[332798799,1721532632831,-883.97785601,0.0001399,3]
[332798800,1721532632843,-450.25,0.0001399,3]
[332798801,1721532632855,-383.54303746,0.0001399,3]
[332798802,1721532632867,-3177.66605195,0.0001399,3]
[332798803,1721532632879,-513.45,0.0001399,3]
[332798804,1721532632891,-1542.43121614,0.0001399,3]
[332798826,1721532638510,-2454.32447479,0.000139,2]
[332798828,1721532638522,-384.30158449,0.000139,2]
[332798831,1721532638535,-4661.37394072,0.000139,2]
[332798833,1721532638545,-45384.08269956,0.0001399,3]
[332798835,1721532638556,-113972.00532106,0.0001399,3]
[332798837,1721532638565,-313.92098384,0.00013992,2]
[332798838,1721532638575,-500.0,0.00013999,2]
[332798839,1721532638585,-500.0,0.00013999,2]
[332798840,1721532638594,-260.06871194,0.00013999,2]
[332798841,1721532638604,-500.0,0.00013999,2]
[332798842,1721532638613,-499823.1656976,0.00014,2]
[332798843,1721532638675,-308.951889,0.00014,2]
[332798844,1721532638685,-405.79384232,0.00014,2]
[332798845,1721532638697,-740749.09588185,0.00014,2]
[332798846,1721532638706,-959.69,0.00014092,2]
[332798847,1721532638716,-394.20442299,0.00014105,2]
[332798848,1721532638725,-360.48491077,0.00014161,2]
[332798849,1721532638736,-995.42,0.00014283,2]
[332798850,1721532638745,-1275.55,0.00014283,2]
[332798851,1721532638754,-155.45259667,0.00014283,2]
[332798852,1721532638764,-263.92615885,0.00014283,2]
[332798853,1721532638773,-526.90433654,0.00014451,2]
[332798854,1721532638783,-1852.42,0.00014472,2]
[332798855,1721532638793,-1000.0,0.00014494,2]
[332798856,1721532638802,-250.0,0.00014663,2]
[332798857,1721532638812,-211.19523749,0.000149,2]
[332798858,1721532638821,-211.19523749,0.000149,2]
[332798859,1721532638830,-11030.954178,0.00015,2]
[332798860,1721532638840,-387.47,0.00015,2]
[332798861,1721532638849,-150.0,0.00015,2]
[332798862,1721532638859,-255.0,0.00015108,2]
[332798863,1721532638868,-360.4849107,0.00015354,2]
[332798864,1721532638878,-1000.0,0.00015402,2]
[332798865,1721532638889,-271.55,0.00016025,2]
[332798866,1721532638898,-5788.84,0.00016116,2]
[332798867,1721532638908,-250.0,0.00016358,2]
[332798868,1721532638918,-360.4849107,0.00016547,2]
[332798869,1721532638927,-250.0,0.00016819,2]
[332798870,1721532638936,-577.99,0.00016915,2]
[332798871,1721532638945,-958.34,0.0001695,2]
[332798872,1721532638955,-200.0,0.00017,2]
[332798873,1721532638964,-23900.0,0.00017018,2]
[332798874,1721532638974,-1000.0,0.00017114,2]
[332798875,1721532638984,-2942.0,0.000173,2]
[332798876,1721532638993,-153.0,0.00017697,2]
[332798877,1721532639004,-153.0,0.00017697,2]
[332798878,1721532639013,-153.0,0.00017697,2]
[332798879,1721532639023,-153.0,0.00017697,2]
[332798880,1721532639032,-400.0,0.00017726,2]
[332798881,1721532639042,-360.4849107,0.00017741,2]
[332798882,1721532639052,-765.27,0.00017892,2]
[332798883,1721532639061,-297.52,0.00017912,2]
[332798885,1721532639071,-297.52,0.00017917,2]
[332798887,1721532639080,-297.52,0.00017922,2]
[332798889,1721532639090,-16951.032,0.00017922,2]
[332798891,1721532639100,-297.52,0.00017926,2]
[332798893,1721532639109,-297.52,0.00017931,2]
[332798895,1721532639118,-297.52,0.00017936,2]
[332798897,1721532639128,-297.52,0.0001794,2]
[332798899,1721532639137,-297.52,0.00017945,2]
[332798901,1721532639147,-297.52,0.0001795,2]
[332798903,1721532639156,-297.52,0.00017955,2]
[332798905,1721532639165,-297.52,0.00017959,2]
[332798907,1721532639175,-297.52,0.00017964,2]
[332798909,1721532639185,-297.52,0.00017969,2]
[332798911,1721532639194,-297.52,0.00017973,2]
[332798913,1721532639203,-297.52,0.00017978,2]
[332798915,1721532639213,-297.52,0.00017983,2]
[332798917,1721532639223,-297.52,0.00017988,2]
[332798919,1721532639233,-297.52,0.00017992,2]
[332798921,1721532639243,-297.52,0.00017997,2]
[332798923,1721532639253,-297.52,0.00018002,2]
[332798925,1721532639263,-169.68,0.00018105,2]
[332798927,1721532639273,-171.47,0.00018115,2]
[332798929,1721532639282,-151.36587027,0.00018161,2]
[332798931,1721532639292,-151.36587027,0.00018243,2]
[332798932,1721532639301,-497.07340276,0.00018266,2]
[332798934,1721532639310,-271.55,0.00018289,2]
[332798936,1721532639320,-2377.69,0.00018346,2]
[332798938,1721532639329,-549.0,0.00018346,2]
[332798940,1721532639341,-1520.181,0.00018346,2]
[332798942,1721532639350,-662.896,0.00018346,2]
[332798943,1721532639359,-5826.0,0.00018346,2]
[332798945,1721532639369,-38345.0,0.00018346,2]
[332798947,1721532639379,-726.994,0.00018346,2]
[332798949,1721532639388,-153.98568546,0.00018428,2]
[332798951,1721532639398,-497.07340276,0.00018489,2]
[332798953,1721532639408,-153.98568546,0.00018816,2]